bitfinex/quotes_SOLUSD_20251030
["timestamp","ask_amount","ask_price","bid_price","bid_amount"]
[1761787154121,5.13267977,194.83,194.72,2.70051032]
[1761787154122,2.03051032,194.78,194.72,2.70051032]
[1761787154439,2.03051032,194.77,194.73,0.67]
[1761787155241,2.69051032,194.77,194.71,5.80572686]
[1761787155418,2.03051032,194.77,194.72,0.67]
[1761787155751,2.03051032,194.77,194.72,5.80541379]
[1761787156116,2.03051032,194.77,194.73,0.67]
[1761787156316,0.66,194.79,194.73,0.67]
[1761787156317,20.592,194.81,194.73,2.70051032]
[1761787156532,2.03051032,194.8,194.74,2.70051032]
[1761787156734,20.592,194.81,194.74,2.70051032]
[1761787156940,2.03051032,194.8,194.75,0.67]
[1761787158322,2.03051032,194.8,194.75,5.80461419]
[1761787158844,2.03051032,194.8,194.76,0.67]
[1761787159838,22.62251032,194.81,194.76,0.67]
[1761787160029,20.592,194.81,194.76,2.70051032]
[1761787160225,20.592,194.81,194.75,7.16512451]
[1761787160226,0.66,194.8,194.75,7.16512451]
[1761787160439,2.03051032,194.79,194.75,5.13461419]
[1761787160655,2.03051032,194.79,194.76,0.67]
[1761787162130,2.03051032,194.77,194.74,0.67]
[1761787163336,2.03051032,194.78,194.74,0.67]
[1761787163849,2.03051032,194.79,194.74,0.67]
[1761787164232,2.03051032,194.79,194.74,5.8049022]
[1761787164635,2.03051032,194.79,194.75,0.71]
[1761787164928,107.23270049,194.83,194.68,5.84658508]
[1761787164929,2.03051032,194.76,194.68,5.84658508]
[1761787165150,2.03051032,194.7,194.66,5.84708617]
[1761787165324,2.03051032,194.69,194.64,5.13769009]
[1761787165522,2.03051032,194.69,194.64,5.84769009]
[1761787165732,2.03051032,194.69,194.65,0.71]
[1761787166126,2.03051032,194.7,194.66,5.13716223]
[1761787166424,2.03051032,194.73,194.67,2.03051032]
[1761787166629,2.03051032,194.72,194.67,2.74051032]
[1761787166829,2.03051032,194.72,194.68,0.71]
[1761787167333,2.03051032,194.74,194.68,7.87688409]
[1761787167539,2.03051032,194.76,194.7,2.03051032]
[1761787167852,2.03051032,194.77,194.71,2.74051032]
[1761787168142,2.03051032,194.77,194.71,2.03051032]
[1761787168353,2.03051032,194.77,194.72,0.71]
[1761787168529,2.03051032,194.79,194.73,2.03051032]
[1761787168935,2.03051032,194.79,194.74,0.71]
[1761787170153,2.03051032,194.79,194.74,5.84491319]
[1761787170454,2.03051032,194.78,194.74,5.84491319]
[1761787170851,2.03051032,194.8,194.75,2.74051032]
[1761787171242,2.03051032,194.8,194.76,0.71]
[1761787171439,22.62251032,194.81,194.76,0.71]
[1761787171935,22.62251032,194.81,194.76,2.74051032]
[1761787172143,22.62251032,194.81,194.77,5.84426092]
[1761787173565,2.03051032,194.81,194.78,0.71]
[1761787174065,2.03051032,194.82,194.78,5.84373403]
[1761787174433,2.03051032,194.82,194.79,0.71]
[1761787174760,102.1,194.84,194.79,0.71]
[1761787174935,2.03051032,194.83,194.79,0.71]
[1761787175857,104.13051032,194.84,194.79,0.71]
[1761787176158,102.1,194.84,194.79,0.71]
[1761787176329,102.1,194.84,194.8,5.13347022]
[1761787176732,102.1,194.84,194.81,0.71]
[1761787177351,102.1,194.84,194.82,5.13294322]
[1761787177985,102.1,194.84,194.83,0.71]
[1761787178182,0.2,194.89,194.83,2.74051032]
[1761787178478,0.2,194.89,194.84,2.03051032]
[1761787178782,0.2,194.89,194.85,0.71]
[1761787179489,0.2,194.89,194.85,5.84204957]
[1761787179490,2.23051032,194.89,194.85,5.84204957]
[1761787181978,2.23051032,194.89,194.86,0.71]
[1761787183793,0.69,194.88,194.83,0.71]
[1761787183952,2.03051032,194.87,194.83,0.71]
[1761787184281,2.03051032,194.88,194.83,5.84257018]
[1761787184658,2.03051032,194.88,194.84,0.71]
[1761787185357,2.03051032,194.87,194.84,0.71]
[1761787185759,2.03051032,194.87,194.84,5.84237998]
[1761787186271,2.03051032,194.87,194.84,0.71]
[1761787188578,2.03051032,194.88,194.84,5.84231888]
[1761787189854,2.03051032,194.87,194.84,5.84231888]
[1761787191057,2.03051032,194.87,194.84,0.71]
[1761787191465,2.03051032,194.87,194.83,5.13266861]
[1761787191664,2.03051032,194.87,194.84,0.71]
[1761787191870,2.03051032,194.88,194.84,0.71]
[1761787193088,2.03051032,194.88,194.85,5.13215293]
[1761787193387,2.23051032,194.89,194.85,5.13215293]
[1761787193563,0.2,194.89,194.86,0.72]
[1761787194881,0.2,194.89,194.87,5.13162621]
[1761787195397,0.2,194.89,194.88,12.53933801]
[1761787196991,0.2,194.89,194.88,17.67070089]
[1761787197890,0.2,194.89,194.88,5.85136288]
[1761787200470,2.92051032,194.89,194.83,10.50882769]
[1761787200695,2.03051032,194.88,194.84,0.72]
[1761787201277,2.03051032,194.87,194.83,5.13267977]
[1761787201500,2.03051032,194.87,194.84,0.72]
[1761787202172,2.03051032,194.87,194.82,11.81933801]
[1761787202173,2.03051032,194.85,194.78,0.72]
[1761787202386,2.03051032,194.81,194.79,5.13347506]
[1761787202777,2.03051032,194.82,194.79,5.85347506]
[1761787203373,3.16810051,194.82,194.8,0.72]
[1761787203786,3.16810051,194.83,194.8,0.72]
[1761787203974,21.282,194.86,194.8,0.72]
[1761787204602,20.592,194.88,194.81,3.16810051]
[1761787204791,21.282,194.88,194.81,3.16810051]
[1761787205100,21.282,194.88,194.81,3.88810051]
[1761787205603,3.36810051,194.89,194.83,3.16810051]
[1761787205779,4.05810051,194.89,194.83,3.88810051]
[1761787205978,4.05810051,194.89,194.83,0.72]
[1761787205979,23.96010051,194.89,194.83,0.72]
[1761787206228,24.65010051,194.89,194.83,0.72]
[1761787206387,20.792,194.89,194.83,3.88810051]
[1761787206713,0.2,194.89,194.83,3.88810051]
[1761787206997,0.2,194.89,194.84,0.72]
[1761787207180,0.2,194.89,194.85,3.16810051]
[1761787207375,0.2,194.89,194.87,3.16810051]
[1761787207885,0.2,194.89,194.88,0.72]
[1761787210106,0.2,194.89,194.88,5.85136288]
[1761787212897,0.2,194.89,194.88,15.78235214]
[1761787221194,0.2,194.89,194.88,20.04701146]
[1761787222899,0.2,194.89,194.88,23.21511197]
[1761787224400,0.2,194.89,194.88,18.95045265]
[1761787227635,0.2,194.89,194.88,23.21511197]
[1761787227806,0.2,194.89,194.88,23.72824825]
[1761787228000,0.1,194.9,194.89,9.93098926]
[1761787228219,0.1,194.9,194.89,10.62098926]
[1761787228527,0.1,194.9,194.89,14.88564858]
[1761787228908,0.1,194.9,194.89,20.01674817]
[1761787229107,0.1,194.9,194.89,23.18484868]
[1761787229804,0.1,194.9,194.89,18.92018936]
[1761787230117,0.1,194.9,194.89,23.18484868]
[1761787230626,0.1,194.9,194.89,23.19580295]
[1761787231126,1e-08,194.91,194.9,31.21298926]
[1761787231327,0.1,194.95,194.93,9.78882769]
[1761787231531,0.1,194.95,194.94,3.31026208]
[1761787231744,0.1,194.95,194.94,4.00026208]
[1761787233229,0.1,194.95,194.94,9.1300456]
[1761787238140,0.1,194.95,194.94,5.27194509]
[1761787238323,0.1,194.95,194.94,18.91887329]
[1761787238648,0.1,194.95,194.93,28.89009324]
[1761787238813,0.1,194.95,194.94,14.15990655]
[1761787239014,0.1,194.95,194.94,14.30206812]
[1761787240031,0.1,194.97,194.96,33.69108977]
[1761787240315,0.1,194.97,194.96,40.02327277]
[1761787241130,0.1,195.01,194.98,0.14216157]
[1761787241339,0.1,195.01,195.0,12.9569282]
[1761787241727,0.1,195.01,195.0,13.6469282]
[1761787241941,0.1,195.01,195.0,13.78908977]
[1761787242549,0.1,195.01,195.0,18.91729489]
[1761787244940,0.1,195.01,195.0,18.22729489]
[1761787245325,0.8,195.01,194.99,5.12842115]
[1761787245737,0.8,195.01,194.98,25.72067352]
[1761787246242,0.8,195.01,194.98,20.592]
[1761787246658,0.8,195.01,194.97,8.29697378]
[1761787246958,0.8,195.01,194.97,5.12887327]
[1761787249949,0.8,195.01,194.98,3.85810051]
[1761787249950,0.1,195.01,194.98,3.85810051]
[1761787250351,0.1,195.01,195.0,12.9569282]
[1761787250863,0.1,195.01,195.0,9.78882769]
[1761787251046,0.1,195.01,194.99,3.16810051]
[1761787251850,0.1,195.01,194.99,8.29633696]
[1761787253263,0.1,195.01,194.99,5.12823645]
[1761787253466,0.1,195.01,195.0,9.78882769]
[1761787253649,0.1,195.01,194.99,8.29633696]
[1761787254245,0.7,195.0,194.98,9.78882769]
[1761787254764,0.1,195.01,194.98,9.78882769]
[1761787255263,0.7,195.0,194.97,14.91759577]
[1761787255466,0.8,195.01,194.97,18.08569628]
[1761787256046,0.1,195.01,194.97,18.08569628]
[1761787256374,0.1,195.01,194.97,31.59818179]
[1761787256583,0.1,195.01,194.97,30.90818179]
[1761787256782,0.8,195.01,194.97,30.90818179]
[1761787257456,0.1,195.01,194.99,5.12846812]
[1761787260061,0.1,195.01,195.0,0.69]
[1761787260264,0.1,195.01,195.0,13.78908977]
[1761787260889,0.1,195.01,195.0,13.09908977]
[1761787261268,0.1,195.01,194.99,8.29656863]
[1761787261581,0.8,195.01,194.99,5.12846812]
[1761787261886,0.1,195.01,194.99,5.12846812]
[1761787262395,0.1,195.01,194.98,23.76010051]
[1761787262564,0.8,195.01,194.98,9.78882769]
[1761787262954,0.1,195.01,194.98,12.9569282]
[1761787263195,0.8,195.01,194.97,20.592]
[1761787263397,3.16810051,194.98,194.93,14.06214826]
[1761787263562,0.7,194.98,194.93,18.77697488]
[1761787263978,0.7,194.98,194.93,31.60209158]
[1761787264588,3.86810051,194.97,194.91,4.27332057]
[1761787264857,0.7,195.0,194.94,3.16810051]
[1761787265060,3.86810051,195.0,194.95,3.16810051]
[1761787265260,2.723738,195.0,194.95,2.023738]
[1761787265487,0.7,194.99,194.95,2.023738]
[1761787265685,0.7,194.99,194.94,2.023738]
[1761787265894,2.723738,194.99,194.94,2.023738]
[1761787266066,0.7,194.99,194.94,2.023738]
[1761787266280,2.723738,194.99,194.94,2.713738]
[1761787266482,2.723738,194.99,194.95,5.12952038]
[1761787266789,2.023738,194.97,194.92,5.13027404]
[1761787266992,2.723738,194.96,194.92,5.13027404]
[1761787267508,0.7,194.95,194.92,5.13027404]
[1761787267865,2.023738,194.94,194.9,5.13063653]
[1761787268094,2.023738,194.93,194.9,5.13063653]
[1761787268287,0.7,194.94,194.89,5.13106526]
[1761787268488,2.023738,194.92,194.89,5.13106526]
[1761787268978,2.723738,194.92,194.89,5.13106526]
[1761787269178,2.023738,194.93,194.89,5.13106526]
[1761787269379,2.723738,194.94,194.89,5.13106526]
[1761787269692,2.723738,194.96,194.9,2.713738]
[1761787270097,2.023738,194.95,194.9,0.69]
[1761787270280,0.7,194.95,194.88,9.78882769]
[1761787270480,0.7,194.95,194.87,14.03698853]
[1761787270481,2.023738,194.89,194.87,9.76366796]
[1761787270690,2.023738,194.88,194.87,9.76366796]
[1761787271005,2.723738,194.88,194.87,9.76366796]
[1761787272570,7.85510088,194.88,194.87,9.76366796]
[1761787274289,20.6835081,194.88,194.77,0.86]
[1761787274486,2.023738,194.82,194.77,0.86]
[1761787275467,2.023738,194.82,194.77,9.98882769]
[1761787275675,2.023738,194.82,194.78,0.66]
[1761787275876,2.023738,194.84,194.78,2.683738]
[1761787276700,2.023738,194.82,194.77,9.98882769]
[1761787276902,2.023738,194.81,194.77,9.98882769]
[1761787277401,2.023738,194.81,194.78,0.66]
[1761787277592,2.703738,194.8,194.77,0.2]
[1761787277779,2.023738,194.78,194.77,0.2]
[1761787278200,2.703738,194.78,194.77,0.2]
[1761787280405,7.83773533,194.78,194.77,0.2]
[1761787281091,20.67272865,194.78,194.65,0.66]
[1761787281298,2.023738,194.69,194.66,9.78882769]
[1761787281495,2.023738,194.68,194.65,0.66]
[1761787281695,2.023738,194.68,194.66,20.592]
[1761787282096,2.023738,194.68,194.65,0.66]
[1761787282409,2.023738,194.66,194.55,0.51400668]
[1761787282591,2.023738,194.61,194.56,0.67]
[1761787282983,2.023738,194.61,194.58,0.87]
[1761787283208,2.023738,194.62,194.58,0.87]
[1761787283398,2.023738,194.61,194.58,0.87]
[1761787283994,2.023738,194.61,194.59,0.67]
[1761787284386,2.023738,194.61,194.58,0.2]
[1761787284387,2.723738,194.6,194.58,0.2]
[1761787284703,2.023738,194.59,194.58,0.2]
[1761787285207,0.7,194.6,194.58,0.2]
[1761787285208,2.023738,194.6,194.58,0.2]
[1761787285403,5.83771002,194.64,194.58,0.2]
[1761787285404,2.023738,194.59,194.58,0.2]
[1761787285893,2.023738,194.61,194.58,0.87]
[1761787286096,2.023738,194.62,194.59,0.67]
[1761787286295,0.7,194.65,194.58,0.2]
[1761787286296,2.023738,194.6,194.58,0.2]
[1761787287712,2.023738,194.6,194.58,0.87]
[1761787288216,2.023738,194.59,194.58,0.87]
[1761787288511,2.023738,194.59,194.58,0.2]
[1761787288712,2.723738,194.59,194.58,0.2]
[1761787290521,7.86274822,194.59,194.58,0.2]
[1761787290899,2.023738,194.55,194.54,0.2]
[1761787291420,2.723738,194.55,194.54,0.2]
[1761787291611,2.023738,194.55,194.54,0.2]
[1761787293003,2.723738,194.55,194.54,0.2]
[1761787294700,7.16380482,194.55,194.54,0.2]
[1761787294903,2.023738,194.55,194.54,0.2]
[1761787295317,10.22419729,194.55,194.54,0.2]
[1761787296014,10.92419729,194.55,194.54,0.2]
[1761787296904,23.77436434,194.55,194.52,0.2]
[1761787297110,23.77436434,194.55,194.48,9.76366796]
[1761787297111,10.16826094,194.53,194.48,9.76366796]
[1761787297316,5.08413047,194.49,194.48,9.76366796]
[1761787298814,10.22578299,194.49,194.48,9.76366796]
[1761787299012,10.22578299,194.49,194.41,9.98882769]
[1761787299013,23.7799143,194.49,194.41,0.2]
[1761787299218,5.08413047,194.42,194.41,0.2]
[1761787299620,5.08413047,194.42,194.41,0.87]
[1761787300304,5.08413047,194.42,194.41,0.2]
[1761787301227,10.22763422,194.42,194.41,0.2]
[1761787301612,5.08413047,194.42,194.41,0.2]
[1761787301832,10.22763422,194.42,194.41,0.2]
[1761787302013,16.01176469,194.42,194.4,0.2]
[1761787302226,5.08413047,194.41,194.4,0.2]
[1761787303320,10.22789879,194.41,194.4,0.2]
[1761787305643,5.14112384,194.51,194.41,9.78882769]
[1761787305821,25.00034401,194.61,194.43,5.08413047]
[1761787305822,4.21292244,194.59,194.43,5.08413047]
[1761787306027,5.08413047,194.5,194.44,14.87295816]
[1761787306228,5.08413047,194.49,194.44,9.78882769]
[1761787306421,5.08413047,194.49,194.45,0.67]
[1761787306831,5.08413047,194.47,194.41,5.08413047]
[1761787307139,5.08413047,194.45,194.42,0.67]
[1761787307346,5.08413047,194.44,194.42,0.67]
[1761787307557,5.08413047,194.45,194.42,0.67]
[1761787307846,5.08413047,194.46,194.42,0.67]
[1761787308437,5.08413047,194.47,194.43,9.78882769]
[1761787308750,0.7,194.52,194.46,5.08413047]
[1761787308751,5.08413047,194.52,194.46,5.08413047]
[1761787308933,5.08413047,194.51,194.46,5.08413047]
[1761787309251,5.08413047,194.48,194.44,10.45882769]
[1761787309536,5.08413047,194.48,194.45,0.67]
[1761787309744,5.08413047,194.49,194.45,0.67]
[1761787310844,5.08413047,194.47,194.45,0.67]
[1761787311221,5.08413047,194.5,194.45,0.67]
[1761787311537,5.08413047,194.52,194.46,14.87295816]
[1761787311838,25.86910096,194.62,194.46,14.87295816]
[1761787311839,5.08413047,194.57,194.52,9.78882769]
[1761787312139,5.08413047,194.57,194.53,0.67]
[1761787313644,5.08413047,194.56,194.53,0.67]
[1761787314427,17.98468732,194.61,194.51,0.72]
[1761787314428,5.08413047,194.54,194.51,0.72]
[1761787314627,5.08413047,194.52,194.49,9.78882769]
[1761787314837,5.08413047,194.51,194.49,9.78882769]
[1761787315054,5.08413047,194.51,194.49,0.72]
[1761787315443,5.75413047,194.5,194.42,0.72]
[1761787315630,5.08413047,194.44,194.42,0.72]
[1761787315949,12.85358089,194.5,194.42,0.72]
[1761787316143,5.08413047,194.44,194.42,0.72]
[1761787316878,5.14165252,194.49,194.42,0.72]
[1761787316879,5.08413047,194.43,194.42,0.72]
[1761787317040,5.08413047,194.43,194.4,0.92]
[1761787317345,5.08413047,194.42,194.4,0.92]
[1761787318560,5.08413047,194.42,194.41,0.72]
[1761787319242,10.22772326,194.42,194.4,0.2]
[1761787319433,5.08413047,194.41,194.4,0.2]
[1761787319759,0.67,194.48,194.4,0.92]
[1761787319952,5.08413047,194.43,194.4,0.92]
[1761787320448,5.08413047,194.41,194.4,0.2]
[1761787321856,10.22789879,194.41,194.4,0.2]
[1761787322246,5.14244574,194.46,194.4,0.92]
[1761787322465,5.08413047,194.43,194.4,0.92]
[1761787322662,5.08413047,194.42,194.4,0.92]
[1761787323064,5.08413047,194.41,194.4,0.2]
[1761787324068,10.22789879,194.41,194.4,0.2]
[1761787324965,5.08413047,194.41,194.4,0.92]
[1761787325365,7.58265419,194.41,194.4,0.92]
[1761787325558,7.58265419,194.41,194.4,0.2]
[1761787326648,0.67,194.47,194.4,0.92]
[1761787326877,7.58265419,194.43,194.41,0.72]
[1761787327381,7.58265419,194.43,194.4,0.2]
[1761787327579,7.58265419,194.42,194.4,0.92]
[1761787327753,7.58265419,194.43,194.4,0.92]
[1761787328159,7.58265419,194.43,194.41,0.72]
[1761787329262,7.58265419,194.42,194.4,0.2]
[1761787329597,7.58265419,194.41,194.4,0.2]
[1761787330258,7.58265419,194.41,194.4,0.92]
[1761787330465,31.4732036,194.64,194.4,0.92]
[1761787330466,7.58265419,194.44,194.4,0.92]
[1761787330689,7.58265419,194.44,194.41,0.72]
[1761787330886,7.58265419,194.43,194.41,0.72]
[1761787331994,7.58265419,194.44,194.41,0.72]
[1761787332186,33.44538236,194.51,194.41,0.72]
[1761787332187,7.58265419,194.46,194.41,0.72]
[1761787332383,7.58265419,194.45,194.41,0.72]
[1761787332558,7.58265419,194.43,194.41,0.72]
[1761787333061,7.58265419,194.44,194.41,0.72]
[1761787333674,7.58265419,194.43,194.41,0.72]
[1761787333865,7.58265419,194.42,194.4,0.2]
[1761787334385,7.58265419,194.41,194.4,0.2]
[1761787335264,8.28265419,194.41,194.4,0.2]
[1761787336275,7.58265419,194.41,194.4,0.2]
[1761787336674,13.42642251,194.41,194.4,0.2]
[1761787338899,5.84376832,194.41,194.4,0.2]
[1761787339100,13.42642251,194.41,194.4,0.2]
[1761787340182,7.58265419,194.41,194.4,0.2]
[1761787340512,8.42504669,194.41,194.4,0.2]
[1761787342200,13.56881501,194.41,194.4,0.2]
[1761787342503,14.25881501,194.41,194.4,0.2]
[1761787343295,34.85081501,194.41,194.4,0.2]
[1761787343483,34.85081501,194.41,194.27,10.03098926]
[1761787343484,7.58265419,194.3,194.27,10.03098926]
[1761787343688,20.592,194.38,194.27,10.03098926]
[1761787343689,7.58265419,194.29,194.27,0.1]
[1761787346730,0.8423925,194.41,194.28,0.92]
[1761787347005,7.58265419,194.32,194.28,0.92]
[1761787347381,7.58265419,194.31,194.28,0.92]
[1761787347580,7.58265419,194.31,194.28,0.2]
[1761787347818,7.58265419,194.31,194.28,0.92]
[1761787347981,0.69,194.35,194.29,0.72]
[1761787347982,7.58265419,194.34,194.29,0.72]
[1761787348183,0.69,194.35,194.29,0.72]
[1761787348389,18.00411522,194.4,194.29,0.72]
[1761787348588,18.00411522,194.4,194.28,0.2]
[1761787348589,7.58265419,194.33,194.28,0.2]
[1761787348788,7.58265419,194.31,194.28,0.2]
[1761787349294,7.58265419,194.29,194.28,0.2]
[1761787349882,20.592,194.37,194.28,0.2]
[1761787350195,7.58265419,194.32,194.28,0.92]
[1761787351317,7.58265419,194.31,194.28,0.92]
[1761787351689,7.58265419,194.31,194.29,0.72]
[1761787353116,7.58265419,194.33,194.29,0.72]
[1761787353419,7.58265419,194.33,194.29,5.86693054]
[1761787353712,7.58265419,194.33,194.29,0.72]
[1761787354012,7.58265419,194.31,194.28,0.2]
[1761787354203,7.58265419,194.31,194.28,6.06717591]
[1761787354598,7.58265419,194.31,194.29,0.72]
[1761787355010,7.58265419,194.32,194.29,0.72]
[1761787355393,7.58265419,194.33,194.29,0.72]
[1761787355832,7.58265419,194.34,194.29,5.86689814]
[1761787356334,7.58265419,194.34,194.3,0.72]
[1761787357595,7.58265419,194.33,194.3,5.86666629]
[1761787357996,7.58265419,194.35,194.31,0.72]
[1761787358293,7.58265419,194.37,194.31,8.30265419]
[1761787358499,7.58265419,194.4,194.34,7.58265419]
[1761787358698,7.58265419,194.39,194.33,7.58265419]
[1761787358918,7.58265419,194.39,194.33,8.30265419]
[1761787359135,7.58265419,194.4,194.34,18.09148188]
[1761787359304,8.42504669,194.41,194.36,5.14509158]
[1761787359812,7.58265419,194.4,194.37,0.72]
[1761787361800,8.42504669,194.41,194.37,0.72]
[1761787363829,7.58265419,194.4,194.37,0.72]
[1761787364627,7.58265419,194.39,194.35,0.72]
[1761787364823,7.58265419,194.36,194.32,20.592]
[1761787365003,7.58265419,194.35,194.32,20.592]
[1761787365423,0.69,194.39,194.33,0.72]
[1761787365602,7.58265419,194.36,194.31,25.73841552]
[1761787365802,7.58265419,194.34,194.28,18.29148188]
[1761787366130,7.58265419,194.34,194.29,5.86693361]
[1761787366527,7.58265419,194.34,194.3,5.86645049]
[1761787366732,7.58265419,194.35,194.3,5.86645049]
[1761787367232,7.58265419,194.35,194.31,0.72]
[1761787367813,7.58265419,194.33,194.29,5.86692615]
[1761787368223,7.58265419,194.33,194.3,0.72]
[1761787368615,7.58265419,194.35,194.3,5.86663726]
[1761787368828,20.592,194.39,194.3,13.44929145]
[1761787369028,7.58265419,194.36,194.31,0.72]
[1761787369214,7.58265419,194.38,194.32,7.58265419]
[1761787369444,3.18249099,194.38,194.32,3.18249099]
[1761787369622,3.18249099,194.38,194.33,0.72]
[1761787369833,3.18249099,194.37,194.33,0.72]
[1761787370151,3.18249099,194.36,194.3,9.04912825]
[1761787370322,3.18249099,194.36,194.31,0.72]
[1761787371229,3.18249099,194.36,194.31,5.86620863]
[1761787371644,3.18249099,194.36,194.32,0.72]
[1761787372136,3.18249099,194.35,194.32,0.72]
[1761787373151,3.18249099,194.35,194.32,5.86613829]
[1761787373318,3.18249099,194.35,194.32,0.72]
[1761787373713,3.18249099,194.35,194.32,5.86606011]
[1761787373940,3.18249099,194.35,194.32,0.72]
[1761787374239,3.18249099,194.35,194.32,5.14614673]
[1761787374444,23.77449099,194.4,194.33,0.71]
[1761787374445,20.592,194.4,194.33,0.71]
[1761787374732,20.592,194.4,194.3,5.14643052]
[1761787374733,3.18249099,194.35,194.3,5.14643052]
[1761787374932,0.68,194.39,194.3,5.85643052]
[1761787374933,3.18249099,194.34,194.3,5.85643052]
[1761787375145,3.18249099,194.34,194.31,0.71]
[1761787375322,3.18249099,194.34,194.31,5.85634299]
[1761787375531,3.18249099,194.34,194.31,0.71]
[1761787375727,3.18249099,194.34,194.32,0.71]
[1761787375930,3.18249099,194.34,194.31,5.85636219]
[1761787376333,3.18249099,194.34,194.32,0.71]
[1761787377041,3.18249099,194.35,194.32,0.71]
[1761787378249,3.18249099,194.35,194.31,5.14636219]
[1761787378448,3.18249099,194.35,194.31,5.85636219]
[1761787378655,3.18249099,194.37,194.32,0.71]
[1761787378955,3.18249099,194.38,194.32,3.89249099]
[1761787379121,3.18249099,194.37,194.33,0.71]
[1761787379319,21.272,194.4,194.33,0.71]
[1761787379320,3.18249099,194.35,194.33,0.71]
[1761787379732,3.18249099,194.35,194.29,25.83863733]
[1761787379940,3.18249099,194.34,194.3,0.71]
[1761787380444,3.18249099,194.31,194.28,0.2]
[1761787380650,3.18249099,194.3,194.28,0.2]
[1761787381149,3.18249099,194.3,194.28,0.91]
[1761787381450,3.18249099,194.29,194.28,6.05721021]
[1761787381645,0.68,194.33,194.28,6.05721021]
[1761787381846,3.18249099,194.3,194.29,0.71]
[1761787382438,3.18249099,194.3,194.28,0.2]
[1761787382645,3.18249099,194.3,194.28,0.91]
[1761787384352,3.18249099,194.3,194.28,6.05714229]
[1761787385055,3.18249099,194.3,194.28,0.91]
[1761787385354,3.18249099,194.3,194.28,0.2]
[1761787385355,2.71935885,194.29,194.28,0.2]
[1761787386440,2.03935885,194.29,194.28,0.2]
[1761787388541,2.03935885,194.29,194.28,0.91]
[1761787388747,102.1,194.3,194.28,0.91]
[1761787388748,2.03935885,194.3,194.28,0.91]
[1761787388943,2.03935885,194.31,194.29,0.71]
[1761787389963,2.03935885,194.3,194.28,5.34721021]
[1761787390140,2.03935885,194.3,194.28,0.2]
[1761787390345,2.03935885,194.31,194.28,6.05716765]
[1761787391066,20.592,194.34,194.29,0.71]
[1761787391242,2.03935885,194.32,194.29,0.71]
[1761787391441,2.03935885,194.31,194.29,0.71]
[1761787392054,0.68,194.35,194.29,0.71]
[1761787392258,2.03935885,194.32,194.29,0.71]
[1761787392464,2.03935885,194.33,194.3,5.14668039]
[1761787392763,123.372,194.37,194.3,5.14668039]
[1761787392764,2.03935885,194.34,194.3,5.14668039]
[1761787392974,2.03935885,194.34,194.3,5.83668039]
[1761787393152,2.03935885,194.33,194.3,5.83668039]
[1761787394244,2.03935885,194.35,194.31,0.69]
[1761787394481,102.1,194.37,194.31,0.69]
[1761787394654,2.03935885,194.37,194.31,2.72935885]
[1761787394862,1.5423925,194.41,194.32,2.72935885]
[1761787394863,2.03935885,194.38,194.32,2.72935885]
[1761787395243,2.03935885,194.38,194.33,0.69]
[1761787395443,2.03935885,194.36,194.33,0.69]
[1761787395670,2.03935885,194.34,194.29,15.62570926]
[1761787395874,2.03935885,194.33,194.29,5.83688157]
[1761787396054,2.03935885,194.33,194.29,0.69]
[1761787396371,2.03935885,194.32,194.29,0.69]
[1761787396882,2.03935885,194.33,194.29,5.83694488]
[1761787397264,2.03935885,194.33,194.3,0.69]
[1761787397472,2.03935885,194.34,194.3,0.69]
[1761787398281,2.03935885,194.34,194.31,5.14641552]
[1761787398856,2.03935885,194.34,194.31,5.83641552]
[1761787399067,2.03935885,194.34,194.32,0.69]
[1761787399689,2.03935885,194.34,194.31,5.14641552]
[1761787399862,2.03935885,194.34,194.31,5.83641552]
[1761787400054,2.03935885,194.35,194.32,0.69]
[1761787400254,2.03935885,194.35,194.32,5.83610769]